bitfinex/quotes_BTCUSD_20220115
["timestamp","ask_amount","ask_price","bid_price","bid_amount"]
[1642274569561,6.876e-05,43410.0,43409.0,1.741244]
[1642274570663,6.876e-05,43410.0,43409.0,2.1024122]
[1642274570921,6.876e-05,43410.0,43409.0,2.68426032]
[1642274571721,6.876e-05,43410.0,43409.0,2.7524122]
[1642274571922,2.78e-06,43410.0,43409.0,1.741244]
[1642274572119,2.78e-06,43410.0,43409.0,1.716244]
[1642274572722,0.3032,43422.0,43410.0,6.392e-05]
[1642274572922,0.00093323,43416.0,43413.0,0.057563]
[1642274573122,8.595e-05,43415.0,43414.0,0.24366226]
[1642274573322,8.595e-05,43415.0,43414.0,1.14243378]
[1642274573522,8.595e-05,43415.0,43414.0,1.19773378]
[1642274575161,8.595e-05,43415.0,43414.0,1.09377938]
[1642274575362,8.595e-05,43415.0,43414.0,1.46988938]
[1642274576369,8.595e-05,43415.0,43414.0,1.51598938]
[1642274576771,8.595e-05,43415.0,43414.0,2.41598938]
[1642274576966,8.595e-05,43415.0,43414.0,2.99671216]
[1642274577368,8.595e-05,43415.0,43414.0,2.09671216]
[1642274577569,8.595e-05,43415.0,43414.0,1.51598938]
[1642274577769,8.595e-05,43415.0,43414.0,1.67556268]
[1642274577968,8.595e-05,43415.0,43414.0,2.35307259]
[1642274578620,8.595e-05,43415.0,43414.0,1.94933703]
[1642274578819,8.595e-05,43415.0,43414.0,1.27182712]
[1642274579621,8.595e-05,43415.0,43414.0,1.97182712]
[1642274580522,8.595e-05,43415.0,43414.0,1.27182712]
[1642274581622,8.595e-05,43415.0,43414.0,1.92182712]
[1642274582073,2.156e-05,43415.0,43414.0,2.96191123]
[1642274582268,2.156e-05,43415.0,43414.0,2.31191123]
[1642274582470,2.156e-05,43415.0,43414.0,1.3547072]
[1642274582771,0.00093329,43417.0,43415.0,0.7]
[1642274582969,0.00093329,43417.0,43416.0,0.47947091]
[1642274583171,0.00093329,43417.0,43416.0,0.52221]
[1642274583670,0.00093327,43419.0,43416.0,0.79095671]
[1642274584674,8.595e-05,43420.0,43416.0,0.79095671]
[1642274584873,8.595e-05,43420.0,43416.0,0.41354671]
[1642274585074,6.876e-05,43419.0,43416.0,0.41354671]
[1642274585474,6.876e-05,43419.0,43416.0,0.31354671]
[1642274585672,6.876e-05,43419.0,43415.0,0.58102164]
[1642274586115,0.00100202,43419.0,43415.0,0.58102164]
[1642274586614,0.00100202,43419.0,43413.0,0.79257402]
[1642274586615,0.00100202,43419.0,43416.0,0.58102164]
[1642274587218,6.876e-05,43419.0,43416.0,0.58102164]
[1642274587614,6.876e-05,43419.0,43414.0,0.58102164]
[1642274588616,0.00100203,43419.0,43414.0,0.53612164]
[1642274589661,0.00100203,43419.0,43413.0,0.79257402]
[1642274590063,0.00100203,43419.0,43414.0,0.67745102]
[1642274590664,6.876e-05,43419.0,43414.0,0.93579422]
[1642274590864,0.00100203,43419.0,43414.0,0.93579422]
[1642274592064,6.876e-05,43419.0,43414.0,0.93579422]
[1642274592266,0.00100203,43419.0,43414.0,0.93579422]
[1642274593166,6.876e-05,43419.0,43414.0,0.93579422]
[1642274593414,0.00100203,43419.0,43415.0,0.67745102]
[1642274593614,0.00100203,43419.0,43415.0,0.63285102]
[1642274594014,0.00100203,43419.0,43416.0,0.63285102]
[1642274594216,0.30015377,43417.0,43416.0,0.63285102]
[1642274595215,0.30015377,43417.0,43414.0,0.2583432]
[1642274595416,0.09692701,43416.0,43414.0,0.2583432]
[1642274595815,0.09692701,43416.0,43410.0,6.392e-05]
[1642274596016,0.30495823,43411.0,43410.0,6.392e-05]
[1642274597864,0.09958714,43411.0,43410.0,6.392e-05]
[1642274598664,0.09958714,43411.0,43406.0,0.21370712]
[1642274598867,0.09461901,43410.0,43406.0,0.21370712]
[1642274599065,0.09461901,43410.0,43407.0,0.00013752]
[1642274599664,0.24520421,43409.0,43407.0,0.00013752]
[1642274599864,0.09530401,43408.0,43407.0,0.00013752]
[1642274600464,0.09530401,43408.0,43405.0,0.0001719]
[1642274600664,0.09530401,43408.0,43404.0,0.00072434]
[1642274601119,0.09530401,43408.0,43405.0,0.0001719]
[1642274601716,0.09530401,43408.0,43406.0,0.68003998]
[1642274602316,0.09530401,43408.0,43407.0,0.68003998]
[1642274602716,0.09958714,43411.0,43407.0,0.68003998]
[1642274603214,0.09958714,43411.0,43408.0,0.00012033]
[1642274603616,0.09958714,43411.0,43409.0,0.58280531]
[1642274603816,0.09300984,43410.0,43409.0,0.53810531]
[1642274605863,0.0012987,43414.0,43409.0,0.53810531]
[1642274606265,0.10924128,43416.0,43410.0,8.595e-05]
[1642274606463,0.68677719,43415.0,43410.0,0.27846393]
[1642274606664,0.68677719,43415.0,43410.0,8.595e-05]
[1642274606865,0.68677719,43415.0,43411.0,6.876e-05]
[1642274607065,0.68677719,43415.0,43409.0,0.00010314]
[1642274608817,0.68677719,43415.0,43408.0,0.97791863]
[1642274609017,8.595e-05,43414.0,43408.0,0.95950863]
[1642274609218,0.161697,43413.0,43408.0,0.95950863]
[1642274609417,0.16176576,43413.0,43408.0,0.95950863]
[1642274609819,0.09325829,43412.0,43408.0,0.95950863]
[1642274612367,0.09325829,43412.0,43410.0,0.58270147]
[1642274613772,0.09325829,43412.0,43410.0,0.53800147]
[1642274614372,0.34164426,43411.0,43410.0,0.53800147]
[1642274616818,0.34164426,43411.0,43407.0,0.68003998]
[1642274617419,0.34164426,43411.0,43408.0,0.68003998]
[1642274618822,0.34164426,43411.0,43408.0,0.63513998]
[1642274619322,0.09325829,43412.0,43408.0,0.63513998]
[1642274620868,0.09325829,43412.0,43408.0,0.97739918]
[1642274621271,0.09325829,43412.0,43408.0,0.63513998]
[1642274622167,0.09325829,43412.0,43410.0,0.58305196]
[1642274622868,0.09325829,43412.0,43411.0,0.58305196]
[1642274623068,0.46937229,43412.0,43411.0,0.58305196]
[1642274623619,0.46937229,43412.0,43410.0,0.58305196]
[1642274623818,0.09440504,43411.0,43410.0,0.53849716]
[1642274624015,0.25610204,43411.0,43410.0,0.53849716]
[1642274624316,0.161697,43411.0,43410.0,0.0001452]
[1642274624915,0.25831406,43411.0,43410.0,0.0001452]
[1642274625716,0.161697,43411.0,43410.0,0.0001452]
[1642274627970,0.0930785,43412.0,43410.0,0.0001452]
[1642274628369,0.0814229,43412.0,43410.0,0.0001452]
[1642274628570,6.876e-05,43413.0,43411.0,0.30829705]
[1642274628770,6.876e-05,43413.0,43411.0,0.26349705]
[1642274629571,6.876e-05,43413.0,43411.0,0.94514979]
[1642274629773,6.876e-05,43413.0,43412.0,1.0102347]
[1642274630371,6.876e-05,43413.0,43412.0,1.23711526]
[1642274630571,8.76e-06,43413.0,43412.0,1.23711526]
[1642274631020,8.76e-06,43413.0,43412.0,0.53711526]
[1642274631720,8.76e-06,43413.0,43412.0,0.22688056]
[1642274632818,8.76e-06,43413.0,43411.0,0.22688056]
[1642274633922,8.76e-06,43413.0,43411.0,0.18198056]
[1642274634324,8.76e-06,43413.0,43410.0,0.20649673]
[1642274634577,8.76e-06,43413.0,43410.0,0.10649673]
[1642274636687,8.76e-06,43413.0,43410.0,0.0001452]
[1642274636883,8.76e-06,43413.0,43410.0,0.10366576]
[1642274638918,8.76e-06,43413.0,43410.0,0.05896576]
[1642274639517,8.76e-06,43413.0,43411.0,0.376114]
[1642274639917,8.76e-06,43413.0,43411.0,0.476114]
[1642274641217,0.31001413,43419.0,43416.0,0.00045366]
[1642274641418,0.376114,43418.0,43416.0,0.00045366]
[1642274641617,0.37619995,43418.0,43416.0,0.00045366]
[1642274642669,0.36619995,43418.0,43416.0,0.00045366]
[1642274642868,0.36619995,43418.0,43417.0,0.68124743]
[1642274643068,8.595e-05,43418.0,43417.0,0.68124743]
[1642274643869,8.595e-05,43418.0,43417.0,0.63664743]
[1642274648823,8.595e-05,43418.0,43417.0,0.59184743]
[1642274649571,8.595e-05,43418.0,43417.0,0.84614743]
[1642274649971,8.595e-05,43418.0,43417.0,0.59184743]
[1642274650370,8.595e-05,43418.0,43417.0,0.84614743]
[1642274651576,2.595e-05,43418.0,43417.0,0.84614743]
[1642274651977,2.595e-05,43418.0,43416.0,0.58446593]
[1642274653738,2.595e-05,43418.0,43417.0,0.58401227]
[1642274653938,2.595e-05,43418.0,43417.0,0.53901227]
[1642274655138,2.595e-05,43418.0,43416.0,0.00045366]
[1642274655339,0.376117,43417.0,43416.0,0.00045366]
[1642274656741,2.595e-05,43418.0,43416.0,0.00045366]
[1642274658670,0.376117,43417.0,43416.0,0.00045366]
[1642274659072,0.376117,43417.0,43414.0,0.63766351]
[1642274659271,2.595e-05,43418.0,43414.0,0.63766351]
[1642274660474,0.00089651,43418.0,43414.0,0.63766351]
[1642274660674,0.3252754,43415.0,43414.0,0.63766351]
[1642274661335,0.41838726,43415.0,43414.0,0.63766351]
[1642274661528,0.41838726,43415.0,43409.0,0.2613841]
[1642274661930,0.31902808,43412.0,43410.0,0.00011157]
[1642274662527,0.31902808,43412.0,43411.0,0.58663292]
[1642274662932,0.31902808,43412.0,43411.0,0.5867273]
[1642274663929,0.31902808,43412.0,43411.0,9.438e-05]
[1642274664129,0.31902808,43412.0,43410.0,0.5416273]
[1642274665484,0.31902808,43412.0,43404.0,0.00055762]
[1642274665679,0.36851667,43405.0,43404.0,0.00055762]
[1642274666279,0.36851667,43405.0,43401.0,0.8813194]
[1642274666479,0.36851667,43405.0,43402.0,0.00055769]
[1642274666679,0.36851667,43405.0,43402.0,0.0007124]
[1642274666879,0.40430272,43405.0,43402.0,0.0007124]
[1642274667081,0.40430272,43405.0,43402.0,0.32912124]
[1642274667479,0.40430272,43405.0,43402.0,0.42856355]
[1642274667681,0.40430272,43405.0,43402.0,0.10015471]
[1642274668326,0.40430272,43405.0,43402.0,0.00015471]
[1642274668723,0.40430272,43405.0,43402.0,0.2636108]
[1642274668925,0.23,43405.0,43402.0,0.2636108]
[1642274669126,0.23,43405.0,43402.0,0.2190108]
[1642274670024,0.23,43405.0,43401.0,0.00120689]
[1642274670227,0.23,43405.0,43401.0,0.00176457]
[1642274670923,0.23,43405.0,43401.0,0.78187708]
[1642274671124,0.23,43405.0,43401.0,1.16177043]
[1642274671324,0.23,43405.0,43401.0,1.16232813]
[1642274671524,0.23,43405.0,43401.0,0.8818771]
[1642274671824,0.23,43405.0,43401.0,0.10176459]
[1642274672075,0.23,43405.0,43401.0,0.00176459]
[1642274672284,0.23,43405.0,43400.0,0.89011251]
[1642274672775,0.23,43405.0,43401.0,0.0005577]
[1642274673574,0.23,43405.0,43400.0,0.45058539]
[1642274673773,0.23,43405.0,43401.0,0.0005577]
[1642274674173,0.23,43405.0,43400.0,0.40644309]
[1642274677021,0.09868867,43405.0,43400.0,0.40644309]
[1642274677422,0.09868867,43405.0,43404.0,0.68571997]
[1642274679122,0.09868867,43405.0,43404.0,0.64111997]
[1642274679422,0.09868867,43405.0,43402.0,0.0577378]
[1642274680470,0.09868867,43405.0,43402.0,0.0001548]
[1642274684122,0.09868867,43405.0,43401.0,0.23463875]
[1642274684723,0.09868867,43405.0,43399.0,0.47929648]
[1642274685123,0.09868867,43405.0,43400.0,0.376117]
[1642274685523,0.09868867,43405.0,43400.0,0.476117]
[1642274687067,0.09868867,43405.0,43404.0,0.6856886]
[1642274687270,0.06909452,43405.0,43404.0,0.6856886]
[1642274688169,0.06909452,43405.0,43404.0,0.7856886]
[1642274689176,0.06909452,43405.0,43404.0,0.7406886]
[1642274691221,0.06909452,43405.0,43404.0,1.1168056]
[1642274691424,0.06909452,43405.0,43404.0,2.3168056]
[1642274691826,0.06909452,43405.0,43404.0,1.676117]
[1642274692322,0.06909452,43405.0,43404.0,2.826117]
[1642274693222,0.06909452,43405.0,43404.0,3.26419217]
[1642274694028,0.06909452,43405.0,43404.0,1.676117]
[1642274694223,0.06909452,43405.0,43404.0,1.631417]
[1642274694423,0.06909452,43405.0,43404.0,2.331417]
[1642274696786,0.06909452,43405.0,43404.0,3.11152951]
[1642274697586,0.03932882,43405.0,43404.0,3.15762951]
[1642274697786,0.03932882,43405.0,43404.0,2.45762951]
[1642274698824,0.03932882,43405.0,43404.0,1.677517]
[1642274699023,0.01702048,43405.0,43404.0,2.077517]
[1642274699229,0.01702048,43405.0,43404.0,2.782617]
[1642274699425,0.01702048,43405.0,43404.0,2.98963702]
[1642274699824,0.01702048,43405.0,43404.0,2.23963702]
[1642274702576,0.01702048,43405.0,43404.0,1.83963702]
[1642274702979,0.01702048,43405.0,43404.0,1.82923702]
[1642274704080,0.01702048,43405.0,43404.0,1.92923702]
[1642274704280,0.01702048,43405.0,43404.0,2.58453702]
[1642274706027,0.01702048,43405.0,43404.0,1.88453702]
[1642274706228,0.01702048,43405.0,43404.0,2.38453702]
[1642274706628,0.01702048,43405.0,43404.0,1.88453702]
[1642274707227,0.01702048,43405.0,43404.0,2.48453702]
[1642274707432,0.00672636,43405.0,43404.0,1.88453702]
[1642274707829,0.00348347,43415.0,43412.0,0.16090072]
[1642274708430,0.09336529,43416.0,43412.0,0.16090072]
[1642274708931,0.00022347,43415.0,43413.0,0.88883923]
[1642274709130,0.00022347,43415.0,43413.0,0.84423923]
[1642274709329,0.00020628,43414.0,43413.0,0.84423923]
[1642274709975,0.00020628,43414.0,43412.0,0.16090072]
[1642274710374,0.00018909,43413.0,43412.0,0.16090072]
[1642274712181,0.00018909,43413.0,43412.0,0.39120648]
[1642274712477,0.00018909,43413.0,43412.0,0.16090072]
[1642274713423,0.00018909,43413.0,43412.0,0.39120648]
[1642274713824,0.00018909,43413.0,43412.0,0.16090072]
[1642274714227,0.00018909,43413.0,43412.0,0.39120648]
[1642274714425,0.00018909,43413.0,43412.0,0.34520648]
[1642274716327,0.00145125,43413.0,43412.0,0.34520648]
[1642274716726,0.37764625,43413.0,43412.0,1.03178128]
[1642274716926,0.49494013,43413.0,43412.0,1.03178128]
[1642274717178,0.72494013,43413.0,43412.0,1.03178128]
[1642274717382,0.72494013,43413.0,43412.0,0.11490072]
[1642274717981,1.03018153,43413.0,43412.0,0.11490072]
[1642274718579,1.02891937,43413.0,43412.0,0.11490072]
[1642274719378,1.02891937,43413.0,43412.0,0.07030072]
[1642274721830,1.02891937,43413.0,43412.0,0.06476493]
[1642274724436,1.02891937,43413.0,43412.0,0.01996493]
[1642274727978,0.65272437,43413.0,43412.0,0.01996493]
[1642274729229,0.34748297,43413.0,43412.0,0.01996493]
[1642274729430,0.34748297,43413.0,43411.0,1.10453751]
[1642274729829,0.0001719,43412.0,43411.0,1.10453751]
[1642274731230,0.0001719,43412.0,43411.0,0.51536493]
[1642274731434,0.0001719,43412.0,43411.0,0.51110493]
[1642274731632,0.0001719,43412.0,43411.0,1.10027751]
[1642274731832,0.0001719,43412.0,43411.0,1.09601751]
[1642274732079,0.09273208,43412.0,43411.0,1.09601751]
[1642274732279,0.0001719,43412.0,43411.0,1.09601751]
[1642274732478,0.09289681,43412.0,43411.0,1.09601751]
[1642274732881,0.0001719,43412.0,43411.0,1.09601751]
[1642274733083,0.0001719,43412.0,43411.0,0.50684493]
[1642274733479,0.0001719,43412.0,43411.0,1.09601751]
[1642274734480,0.0001719,43412.0,43411.0,1.05101751]
[1642274734681,0.09127295,43412.0,43411.0,1.05101751]
[1642274735926,0.09127295,43412.0,43411.0,0.46184493]
[1642274736325,0.0001719,43412.0,43411.0,0.46184493]
[1642274736525,0.09310473,43412.0,43411.0,0.46184493]
[1642274736725,0.0001719,43412.0,43411.0,0.46184493]
[1642274736925,0.09687171,43412.0,43411.0,0.46184493]
[1642274737129,0.09687171,43412.0,43411.0,1.05101751]
[1642274737528,0.0001719,43412.0,43411.0,1.05101751]
[1642274737728,0.09214514,43412.0,43411.0,1.05101751]
[1642274737927,0.09214514,43412.0,43411.0,0.46184493]
[1642274739428,0.09214514,43412.0,43411.0,0.41694493]
[1642274739877,0.08984218,43412.0,43411.0,0.41694493]
[1642274741778,0.23,43413.0,43411.0,0.41694493]
[1642274742379,0.09103908,43412.0,43411.0,0.41694493]
[1642274742981,0.08603908,43412.0,43411.0,0.41694493]
[1642274743925,0.23,43413.0,43411.0,0.41694493]
[1642274744525,0.23,43413.0,43411.0,0.37214493]
[1642274745128,0.22,43413.0,43411.0,0.37214493]
[1642274747777,0.22,43413.0,43411.0,0.96131751]
[1642274748380,0.22,43413.0,43412.0,0.58917258]
[1642274748777,0.22,43413.0,43411.0,1.05871973]
[1642274749579,0.22,43413.0,43411.0,1.01391973]
[1642274749779,0.22,43413.0,43411.0,0.6865748]
[1642274751047,0.22,43413.0,43411.0,1.01428166]
[1642274751849,0.22,43413.0,43411.0,0.32770686]
[1642274753051,0.00093331,43414.0,43413.0,0.473273]
[1642274754054,8.595e-05,43417.0,43413.0,0.80097986]
[1642274754254,0.0009333,43416.0,43413.0,0.80097986]
[1642274754454,0.00100206,43416.0,43413.0,0.80097986]
[1642274754680,0.00100206,43416.0,43413.0,0.75627986]
[1642274755280,0.00100206,43416.0,43414.0,1.0153581]
[1642274755281,6.876e-05,43416.0,43414.0,1.0153581]
[1642274756880,6.876e-05,43416.0,43415.0,1.30282627]
[1642274757082,6.876e-05,43416.0,43415.0,1.7896442]
[1642274757680,6.876e-05,43416.0,43415.0,1.53307814]
[1642274757880,6.876e-05,43416.0,43415.0,2.57463303]
[1642274758333,6.876e-05,43416.0,43415.0,2.22072938]
[1642274758532,6.876e-05,43416.0,43415.0,2.12275855]
[1642274759232,6.876e-05,43416.0,43415.0,1.75377582]
[1642274759631,6.876e-05,43416.0,43415.0,1.70927582]
[1642274760238,6.876e-05,43416.0,43415.0,0.55377582]
[1642274761935,6.876e-05,43416.0,43415.0,1.24183093]
[1642274763177,6.876e-05,43416.0,43415.0,0.55377582]
[1642274763677,6.876e-05,43416.0,43415.0,1.00377582]
[1642274763979,6.876e-05,43416.0,43415.0,1.04965582]
[1642274764177,6.876e-05,43416.0,43415.0,1.14965582]
[1642274764575,6.876e-05,43416.0,43415.0,2.40495582]
[1642274764776,6.876e-05,43416.0,43415.0,2.78115082]
[1642274765378,8.76e-06,43416.0,43415.0,1.48115082]
[1642274766030,8.76e-06,43416.0,43415.0,1.19299268]
[1642274767229,8.76e-06,43416.0,43415.0,1.48309118]
[1642274767430,8.76e-06,43416.0,43415.0,1.19299268]
[1642274768831,8.76e-06,43416.0,43415.0,1.53720336]
[1642274769686,8.76e-06,43416.0,43415.0,1.49230336]
[1642274769881,8.76e-06,43416.0,43415.0,1.14809268]
[1642274773438,0.00093328,43418.0,43415.0,1.14809268]
[1642274773637,0.00093328,43418.0,43416.0,1.17804836]
[1642274773937,0.00093328,43418.0,43417.0,1.54936377]
[1642274774137,0.00093328,43418.0,43417.0,2.02555877]
[1642274774338,0.00015472,43425.0,43417.0,2.02555877]
[1642274774640,0.00093326,43420.0,43418.0,0.331495]
[1642274775039,0.00093326,43420.0,43419.0,2.257553]
[1642274775238,0.00093326,43420.0,43419.0,2.633748]
[1642274775439,0.00100202,43420.0,43419.0,2.733748]
[1642274775641,6.876e-05,43420.0,43419.0,3.42155718]
[1642274775841,0.00093324,43422.0,43421.0,0.30125063]
[1642274776039,0.00093324,43422.0,43421.0,0.77735863]
[1642274776242,0.00093324,43422.0,43421.0,0.40125063]
[1642274776840,8.596e-05,43425.0,43421.0,0.40125063]
[1642274777083,0.00093322,43424.0,43421.0,0.40125063]
[1642274777282,0.00100198,43424.0,43422.0,0.2999]
[1642274777983,6.876e-05,43424.0,43422.0,0.2999]
[1642274779585,6.876e-05,43424.0,43422.0,0.2553]
[1642274780385,6.876e-05,43424.0,43423.0,0.457556]
[1642274780585,6.876e-05,43424.0,43423.0,0.833664]
[1642274781431,6.876e-05,43424.0,43423.0,1.333664]
[1642274781829,6.876e-05,43424.0,43423.0,0.833664]
[1642274782830,6.876e-05,43424.0,43423.0,0.776108]
[1642274784678,6.876e-05,43424.0,43423.0,0.731108]
[1642274788086,6.876e-05,43424.0,43423.0,0.831108]
[1642274788534,6.876e-05,43424.0,43423.0,1.20795014]
[1642274788735,6.876e-05,43424.0,43423.0,1.26550114]
[1642274789137,6.876e-05,43424.0,43423.0,0.831108]
[1642274789535,6.876e-05,43424.0,43423.0,1.42111759]
[1642274789735,6.876e-05,43424.0,43423.0,1.37631759]
[1642274790335,6.876e-05,43424.0,43423.0,0.786308]
[1642274790540,6.876e-05,43424.0,43423.0,0.3102]
[1642274791738,6.876e-05,43424.0,43423.0,0.90020959]
[1642274794792,6.876e-05,43424.0,43423.0,0.85560959]
[1642274795592,6.876e-05,43424.0,43423.0,0.2656]
[1642274797737,6.876e-05,43424.0,43422.0,0.68780918]
[1642274798537,6.876e-05,43424.0,43423.0,0.59064481]
[1642274799798,6.876e-05,43424.0,43423.0,0.54574481]
[1642274801699,6.876e-05,43424.0,43422.0,0.96099163]
[1642274803742,0.09122065,43428.0,43422.0,0.96099163]
[1642274803938,0.1196513,43432.0,43422.0,0.96099163]
[1642274804137,6.877e-05,43428.0,43422.0,0.96099163]
[1642274804538,6.877e-05,43428.0,43423.0,0.057555]
[1642274804740,6.877e-05,43428.0,43423.0,0.34073994]
[1642274804937,0.09480265,43428.0,43423.0,0.34073994]
[1642274805139,0.09480265,43428.0,43423.0,0.70076418]
[1642274805637,0.08480265,43428.0,43423.0,0.70076418]
[1642274806042,0.08480265,43428.0,43424.0,6.877e-05]
[1642274807884,0.09110122,43428.0,43424.0,6.877e-05]
[1642274808088,0.10872348,43432.0,43425.0,0.28269076]
[1642274808286,0.00093318,43428.0,43425.0,0.87356104]
[1642274808987,0.00093318,43428.0,43427.0,0.59087028]
[1642274809186,0.30590846,43429.0,43427.0,0.59087028]
[1642274809386,0.09117227,43428.0,43427.0,0.59087028]
[1642274809587,0.00085058,43429.0,43427.0,0.59087028]
[1642274809786,0.00085058,43429.0,43427.0,0.54627028]
[1642274810388,0.10630471,43432.0,43427.0,0.54627028]
[1642274810589,0.31391346,43430.0,43427.0,0.54627028]
[1642274810829,0.00085056,43430.0,43427.0,0.54627028]
[1642274811430,0.00085056,43430.0,43425.0,0.97049994]
[1642274811730,0.00085056,43431.0,43426.0,0.68780918]
[1642274811929,0.31908775,43431.0,43426.0,0.68780918]
[1642274812131,0.00085056,43431.0,43426.0,0.68780918]
[1642274812332,0.00085056,43431.0,43427.0,0.057551]
[1642274812932,0.00085056,43431.0,43427.0,0.74536018]
[1642274813131,0.00085056,43431.0,43429.0,0.33685951]
[1642274813734,0.00085056,43431.0,43427.0,0.74036018]
[1642274813932,0.00144,43432.0,43428.0,1.09310405]
[1642274814130,0.0008751,43431.0,43428.0,1.09310405]
[1642274814781,0.0008751,43431.0,43429.0,0.36039487]
[1642274814981,0.0008751,43431.0,43429.0,1.04820405]
[1642274815183,0.00144,43432.0,43429.0,1.04820405]
[1642274815381,0.00231509,43432.0,43429.0,1.04820405]
[1642274815580,0.00231509,43432.0,43429.0,0.68780918]
[1642274816485,0.376108,43431.0,43429.0,0.68780918]
[1642274816883,0.376108,43431.0,43428.0,0.68780918]
[1642274817682,0.00144,43432.0,43428.0,0.68780918]
[1642274817983,0.00230805,43432.0,43428.0,0.68780918]
[1642274818433,0.00230805,43432.0,43430.0,0.59089495]
[1642274818835,0.376108,43431.0,43430.0,0.59089495]
[1642274819834,0.00144,43432.0,43430.0,0.54629495]
[1642274820036,0.00144,43432.0,43429.0,0.54629495]
[1642274820637,0.00144,43432.0,43428.0,0.68780918]
[1642274821238,0.00144,43432.0,43429.0,0.68780918]
[1642274821438,0.00231009,43432.0,43429.0,0.68780918]
[1642274821840,0.00231009,43432.0,43428.0,0.68780918]
[1642274822283,0.00131009,43433.0,43428.0,0.68780918]
[1642274822782,6.876e-05,43432.0,43428.0,0.68780918]
[1642274824788,6.876e-05,43432.0,43428.0,0.64300918]
[1642274825936,6.876e-05,43432.0,43425.0,0.645877]
[1642274826237,6.876e-05,43432.0,43425.0,0.74661897]
[1642274827236,6.876e-05,43432.0,43425.0,0.745877]
[1642274827436,6.876e-05,43432.0,43425.0,0.74661899]
[1642274828439,6.876e-05,43432.0,43429.0,0.59081524]
[1642274829783,6.876e-05,43432.0,43429.0,0.54611524]
[1642274830685,6.876e-05,43432.0,43425.0,0.80417197]
[1642274830884,6.876e-05,43432.0,43426.0,0.42495275]
[1642274831083,6.876e-05,43432.0,43426.0,0.52495275]
[1642274832286,6.876e-05,43432.0,43428.0,0.68926283]
[1642274834436,6.876e-05,43432.0,43427.0,1.11421558]
[1642274834644,6.876e-05,43432.0,43427.0,1.21421558]
[1642274834838,6.876e-05,43432.0,43427.0,1.16921558]
[1642274835038,6.876e-05,43432.0,43428.0,0.68926283]
[1642274836938,6.876e-05,43432.0,43427.0,0.68926283]
[1642274838486,6.876e-05,43432.0,43429.0,0.59080126]
[1642274838886,6.876e-05,43432.0,43428.0,0.59080126]
[1642274839888,6.876e-05,43432.0,43429.0,0.057547]
[1642274841136,6.876e-05,43432.0,43429.0,0.74680983]
[1642274842139,6.876e-05,43432.0,43429.0,0.68926283]
[1642274843337,6.876e-05,43432.0,43427.0,0.68926283]
[1642274843537,6.876e-05,43432.0,43427.0,0.78659283]
[1642274843940,6.876e-05,43432.0,43427.0,0.68659283]
[1642274844586,6.876e-05,43432.0,43425.0,0.28343274]
[1642274844785,6.876e-05,43432.0,43428.0,0.27871327]
[1642274844988,6.876e-05,43432.0,43428.0,0.23371327]
[1642274844989,0.376108,43431.0,43428.0,0.23371327]
[1642274845385,0.376108,43431.0,43426.0,0.157552]
[1642274845588,6.876e-05,43432.0,43427.0,0.10725702]
[1642274845787,6.876e-05,43432.0,43430.0,0.00127633]
[1642274845987,6.876e-05,43432.0,43431.0,1.77734202]
[1642274846184,6.876e-05,43432.0,43431.0,1.87734202]
[1642274846585,6.876e-05,43432.0,43431.0,2.14967438]
[1642274847185,0.00393312,43434.0,43431.0,2.14967438]
[1642274847386,0.001,43440.0,43434.0,0.85]
[1642274847691,6.876e-05,43436.0,43435.0,0.0461]
[1642274847884,6.876e-05,43436.0,43435.0,0.53634676]
[1642274848085,6.876e-05,43436.0,43435.0,0.522208]
[1642274848337,6.876e-05,43436.0,43435.0,0.81282428]
[1642274848935,6.876e-05,43436.0,43435.0,0.87035628]
[1642274849934,6.876e-05,43436.0,43435.0,0.82575628]
[1642274850340,6.876e-05,43436.0,43435.0,1.25567619]
[1642274851135,6.876e-05,43436.0,43435.0,0.82575628]
[1642274851737,6.876e-05,43436.0,43435.0,1.96827868]
[1642274852588,6.876e-05,43436.0,43435.0,1.35305855]
[1642274852787,6.876e-05,43436.0,43435.0,0.66822428]
[1642274852993,6.876e-05,43436.0,43435.0,0.76822428]
[1642274853388,6.876e-05,43436.0,43435.0,1.35531235]
[1642274853889,6.876e-05,43436.0,43435.0,0.76822428]
[1642274854488,6.876e-05,43436.0,43435.0,1.41822428]
[1642274854688,6.876e-05,43436.0,43435.0,1.47905428]
[1642274855088,6.876e-05,43436.0,43435.0,0.78365428]
[1642274855289,6.876e-05,43436.0,43435.0,1.37074235]
[1642274856439,6.876e-05,43436.0,43435.0,1.27074235]
[1642274857242,6.876e-05,43436.0,43435.0,0.68365428]
[1642274857440,6.876e-05,43436.0,43435.0,0.62282428]
[1642274857642,6.876e-05,43436.0,43435.0,0.29061628]
[1642274859789,6.876e-05,43436.0,43435.0,0.87770435]
[1642274859987,6.876e-05,43436.0,43435.0,0.83300435]
[1642274860189,6.876e-05,43436.0,43435.0,1.26655835]
[1642274860388,6.876e-05,43436.0,43435.0,0.62193528]
[1642274860587,6.876e-05,43436.0,43435.0,0.24591628]
[1642274865041,6.876e-05,43436.0,43435.0,0.20121628]
[1642274868089,6.876e-05,43436.0,43433.0,1.2]
[1642274868888,0.03359219,43434.0,43433.0,1.2]
[1642274869890,0.25270532,43435.0,43433.0,1.2]
[1642274870090,0.25270532,43435.0,43433.0,1.1552]
[1642274872040,0.09662561,43434.0,43433.0,1.1552]
[1642274872640,0.00100186,43436.0,43433.0,1.1552]
[1642274872843,6.876e-05,43436.0,43433.0,1.1552]
[1642274873045,0.00100186,43436.0,43433.0,1.1552]
[1642274873849,0.09979057,43436.0,43433.0,1.1552]
[1642274874044,0.09885747,43436.0,43433.0,1.1552]
[1642274875088,0.09885747,43436.0,43433.0,1.1106]
[1642274875890,0.09233458,43436.0,43433.0,1.1106]
[1642274876290,6.876e-05,43436.0,43433.0,1.1106]
[1642274877490,0.29633024,43436.0,43433.0,1.1106]
[1642274878939,6.876e-05,43436.0,43433.0,1.1106]
[1642274880241,6.876e-05,43436.0,43433.0,1.0657]
[1642274881343,0.23006876,43436.0,43433.0,1.0657]
[1642274883294,0.37761049,43436.0,43433.0,1.0657]
[1642274884295,0.32005648,43436.0,43433.0,1.0657]
[1642274885292,0.32005648,43436.0,43433.0,1.021]
[1642274888544,0.24779099,43435.0,43433.0,1.021]
[1642274888744,0.09746359,43434.0,43433.0,1.021]
[1642274889789,0.23100186,43436.0,43433.0,1.021]
[1642274889985,0.3225177,43436.0,43433.0,1.021]
[1642274890185,0.3225177,43436.0,43433.0,0.9764]
[1642274890786,0.63589594,43436.0,43433.0,0.9764]
[1642274893643,0.3215846,43436.0,43433.0,0.9764]
[1642274893841,0.23006876,43436.0,43433.0,0.9764]
[1642274895142,0.23006876,43436.0,43433.0,0.9317]
[1642274898300,0.31580728,43436.0,43433.0,0.9317]
[1642274898499,0.23006876,43436.0,43433.0,0.9317]
[1642274899523,0.31579377,43436.0,43433.0,0.9317]
[1642274900304,0.31579377,43436.0,43433.0,0.8871]
[1642274901447,0.00126508,43434.0,43433.0,0.8871]
[1642274901645,2.05340722,43434.0,43433.0,0.8871]
[1642274901847,3.65142622,43434.0,43433.0,0.8871]
[1642274902450,3.75767021,43434.0,43433.0,0.8871]
[1642274903646,3.75689021,43434.0,43433.0,0.8871]
[1642274904246,3.65090419,43434.0,43433.0,0.8871]
[1642274905297,3.78921279,43434.0,43433.0,0.8424]